bitfinex/quotes_BTCUSD_20240906
["timestamp","ask_amount","ask_price","bid_price","bid_amount"]
[1725629588595,0.002,56711.0,56687.0,0.176406]
[1725629588596,0.1,56699.0,56687.0,0.00352742]
[1725629588833,0.176376,56698.0,56682.0,0.00352742]
[1725629589061,0.44451526,56714.0,56681.0,0.137]
[1725629589062,0.09124271,56713.0,56685.0,0.45451526]
[1725629589294,0.09124271,56713.0,56683.0,0.17903852]
[1725629589295,0.52650515,56703.0,56693.0,0.176386]
[1725629589544,0.35266,56712.0,56686.0,0.38591096]
[1725629589788,0.09124271,56713.0,56686.0,0.38591096]
[1725629589789,0.01834518,56702.0,56701.0,0.352724]
[1725629590007,0.09124271,56713.0,56702.0,0.35272]
[1725629590251,0.09124271,56713.0,56701.0,0.1402]
[1725629590535,0.1318,56722.0,56701.0,0.1402]
[1725629590536,0.3525,56738.0,56713.0,0.01]
[1725629590780,0.01,56741.0,56715.0,0.01]
[1725629590781,0.52650515,56727.0,56715.0,0.01]
[1725629591002,0.52650515,56742.0,56720.0,0.01]
[1725629591299,0.52650515,56742.0,56741.0,0.1778]
[1725629591732,0.88118,56742.0,56741.0,0.1778]
[1725629591990,0.44451526,56748.0,56728.0,0.354077]
[1725629592245,0.44451526,56748.0,56728.0,0.1778]
[1725629592490,0.44451526,56748.0,56729.0,0.00352533]
[1725629592775,0.01,56750.0,56728.0,0.1778]
[1725629592776,0.352449,56746.0,56733.0,0.352522]
[1725629593001,0.352406,56753.0,56735.0,0.1832]
[1725629593269,0.1587,56765.0,56735.0,0.1832]
[1725629593270,0.1387,56765.0,56744.0,0.35246]
[1725629593496,0.1387,56765.0,56745.0,0.0035241]
[1725629593497,0.176186,56758.0,56745.0,0.0035241]
[1725629593736,0.17622,56747.0,56746.0,0.173]
[1725629593957,0.528661,56747.0,56746.0,0.173]
[1725629594172,0.88058559,56747.0,56746.0,0.173]
[1725629594412,0.17570359,56747.0,56746.0,0.173]
[1725629594639,0.176209,56751.0,56746.0,0.173]
[1725629594881,0.35238,56757.0,56746.0,0.173]
[1725629595083,0.176206,56752.0,56746.0,0.173]
[1725629595312,0.1387,56765.0,56746.0,0.173]
[1725629595313,0.1487,56765.0,56746.0,0.173]
[1725629595598,0.17622,56747.0,56746.0,0.173]
[1725629595844,0.17622,56747.0,56724.0,0.002]
[1725629595845,0.352458,56745.0,56738.0,0.1745]
[1725629596058,0.1,56746.0,56738.0,0.1745]
[1725629596286,0.276226,56746.0,56741.0,0.176238]
[1725629596518,0.528736,56739.0,56738.0,0.1745]
[1725629596731,0.176245,56739.0,56738.0,0.1745]
[1725629596963,0.352462,56744.0,56738.0,0.1745]
[1725629597185,0.1,56746.0,56738.0,0.1745]
[1725629597186,0.352473,56742.0,56738.0,0.1745]
[1725629597450,0.1,56741.0,56738.0,0.1745]
[1725629597963,0.01,56755.0,56738.0,0.1745]
[1725629597964,0.352411,56752.0,56744.0,0.176227]
[1725629598239,0.352306,56769.0,56750.0,0.352417]
[1725629598497,0.352306,56769.0,56745.0,0.21203459]
[1725629598498,0.44451526,56766.0,56753.0,0.352403]
[1725629598755,0.307,56771.0,56738.0,0.1823]
[1725629598756,0.44451526,56760.0,56738.0,0.1723]
[1725629598977,0.44451526,56754.0,56738.0,0.1723]
[1725629599230,0.44451526,56760.0,56749.0,0.176213]
[1725629599453,0.44451526,56760.0,56739.0,0.02652424]
[1725629599454,0.44425653,56766.0,56750.0,0.00352375]
[1725629599724,0.352371,56759.0,56740.0,0.00352375]
[1725629599970,0.1,56758.0,56746.0,0.352443]
[1725629600192,0.1,56759.0,56742.0,0.00352375]
[1725629600414,0.1,56759.0,56743.0,0.17551096]
[1725629600677,0.1,56759.0,56755.0,0.176194]
[1725629600937,0.44451526,56767.0,56743.0,0.17551096]
[1725629600938,0.01834518,56764.0,56757.0,0.1737]
[1725629601398,0.352341,56764.0,56757.0,0.1737]
[1725629601635,0.176175,56762.0,56757.0,0.1737]
[1725629601860,0.44451526,56767.0,56759.0,0.17618]
[1725629602075,0.352324,56766.0,56759.0,0.176181]
[1725629602292,0.176178,56761.0,56757.0,0.349887]
[1725629602542,0.276165,56765.0,56757.0,0.1737]
[1725629602794,0.1,56765.0,56761.0,0.176175]
[1725629603025,0.1,56765.0,56757.0,0.526079]
[1725629603245,0.352338,56764.0,56757.0,0.349888]
[1725629603483,0.352338,56764.0,56758.0,0.176186]
[1725629603484,0.176174,56762.0,56758.0,0.176186]
[1725629603725,0.1,56766.0,56757.0,0.1737]
[1725629603942,0.46286044,56774.0,56758.0,0.17903421]
[1725629604220,0.352284,56773.0,56758.0,0.17903421]
[1725629604435,0.352317,56767.0,56758.0,0.35237]
[1725629604652,0.176175,56762.0,56758.0,0.176186]
[1725629604879,0.44451526,56768.0,56757.0,0.1737]
[1725629605094,0.176181,56760.0,56757.0,0.1737]
[1725629605319,0.352318,56767.0,56757.0,0.1737]
[1725629605539,0.01834518,56774.0,56757.0,0.1737]
[1725629605540,0.176148,56771.0,56767.0,0.176158]
[1725629605791,0.46286044,56774.0,56758.0,0.17551096]
[1725629606026,0.46286044,56774.0,56764.0,0.176166]
[1725629606027,0.1,56773.0,56764.0,0.176166]
[1725629606257,0.176159,56767.0,56763.0,0.17617]
[1725629606487,0.176168,56764.0,56760.0,0.176179]
[1725629606706,0.176172,56763.0,56759.0,0.176182]
[1725629606923,0.176172,56763.0,56757.0,0.1737]
[1725629606924,0.000816,56772.0,56757.0,0.1737]
[1725629606925,0.352318,56767.0,56757.0,0.1737]
[1725629607154,0.000816,56772.0,56757.0,0.1737]
[1725629607155,0.000816,56772.0,56758.0,0.17903401]
[1725629607376,0.000816,56772.0,56771.0,0.176146]
[1725629607616,0.000816,56772.0,56771.0,0.702338]
[1725629607910,0.000816,56772.0,56771.0,0.1739]
[1725629608097,0.529245,56772.0,56771.0,0.1739]
[1725629608343,0.881531,56772.0,56771.0,0.1739]
[1725629608810,0.881531,56772.0,56763.0,0.176169]
[1725629608811,0.000816,56772.0,56763.0,0.176169]
[1725629609029,0.000816,56772.0,56764.0,0.00352306]
[1725629609249,0.000816,56772.0,56771.0,0.176146]
[1725629609482,0.000816,56772.0,56771.0,1.03155234]
[1725629609709,0.000816,56772.0,56771.0,1.20354096]
[1725629609924,0.000816,56772.0,56771.0,1.22654096]
[1725629610179,0.000816,56772.0,56771.0,0.49895696]
[1725629610447,0.000816,56772.0,56770.0,0.1687]
[1725629610661,0.176146,56771.0,56770.0,0.1687]
[1725629610875,0.000816,56772.0,56770.0,0.1687]
[1725629611522,0.17696,56772.0,56770.0,0.1687]
[1725629611822,0.176146,56771.0,56770.0,0.1687]
[1725629612040,0.528438,56771.0,56770.0,0.1687]
[1725629612501,0.000816,56772.0,56770.0,0.1687]
[1725629612502,0.000816,56772.0,56771.0,0.528438]
[1725629613186,0.000816,56772.0,56770.0,0.1687]
[1725629613404,0.000816,56772.0,56771.0,0.70394896]
[1725629613641,0.000816,56772.0,56771.0,1.41053296]
[1725629613902,0.01834518,56786.0,56785.0,1.412717]
[1725629614130,0.00082,56796.0,56785.0,1.412717]
[1725629614131,0.00082,56796.0,56795.0,0.528214]
[1725629614348,0.00082,56796.0,56795.0,1.23886796]
[1725629614567,0.00082,56796.0,56795.0,1.26186796]
[1725629614795,0.00082,56796.0,56795.0,1.61401096]
[1725629615000,0.00082,56796.0,56795.0,1.26186796]
[1725629615473,0.00082,56796.0,56795.0,0.183]
[1725629615474,0.176888,56796.0,56795.0,0.183]
[1725629615992,0.00082,56796.0,56795.0,0.35851096]
[1725629616255,0.00082,56796.0,56795.0,0.55758196]
[1725629616475,0.00082,56796.0,56795.0,0.90972496]
[1725629617118,0.00082,56796.0,56795.0,1.26186796]
[1725629617331,0.00082,56796.0,56795.0,0.90972496]
[1725629617547,0.00082,56796.0,56795.0,0.183]
[1725629617813,0.00082,56796.0,56795.0,0.53458196]
[1725629618030,0.00082,56796.0,56795.0,1.61401096]
[1725629618267,0.00082,56796.0,56795.0,1.76541096]
[1725629618479,0.00082,56796.0,56795.0,1.40326796]
[1725629619123,0.00082,56796.0,56795.0,1.75541096]
[1725629619340,0.00082,56796.0,56795.0,1.75741096]
[1725629619579,0.00056133,56796.0,56795.0,1.75541096]
[1725629619809,0.00056133,56796.0,56795.0,0.500471]
[1725629620518,0.00056133,56796.0,56795.0,0.852614]
[1725629620958,0.00056133,56796.0,56795.0,1.73241096]
[1725629621179,0.00056133,56796.0,56795.0,1.40326796]
[1725629621685,0.00056133,56796.0,56795.0,0.3244]
[1725629621865,0.00056133,56796.0,56795.0,0.852614]
[1725629622290,0.00056133,56796.0,56795.0,1.204757]
[1725629622520,0.00056133,56796.0,56795.0,1.73241096]
[1725629622999,0.00056133,56796.0,56795.0,1.75541096]
[1725629623213,0.00056133,56796.0,56795.0,1.40326796]
[1725629624643,0.52876633,56796.0,56795.0,0.183]
[1725629624862,0.00056133,56796.0,56795.0,0.183]
[1725629625301,0.00056133,56796.0,56795.0,0.711214]
[1725629625578,0.00056133,56796.0,56789.0,0.1778]
[1725629625579,0.352144,56795.0,56789.0,0.1778]
[1725629625785,0.352144,56795.0,56783.0,0.139]
[1725629625786,0.44451526,56793.0,56783.0,0.1704]
[1725629626004,0.352199,56786.0,56783.0,0.1704]
[1725629626254,0.176105,56784.0,56783.0,0.1704]
[1725629626477,0.00056133,56796.0,56793.0,0.176076]
[1725629626478,0.17663033,56796.0,56793.0,0.176076]
[1725629626699,0.17663033,56796.0,56787.0,0.00352139]
[1725629626700,0.1,56795.0,56787.0,0.00352139]
[1725629626937,0.00056133,56796.0,56791.0,0.352163]
[1725629627168,0.00056133,56796.0,56795.0,0.176071]
[1725629627398,0.176073,56795.0,56791.0,0.176082]
[1725629627638,0.00056133,56796.0,56785.0,0.352201]
[1725629627877,0.00056133,56796.0,56783.0,0.1704]
[1725629627878,0.176105,56784.0,56783.0,0.1704]
[1725629628090,0.176097,56787.0,56783.0,0.1704]
[1725629628325,0.176084,56791.0,56786.0,0.352198]
[1725629628592,0.35270433,56796.0,56787.0,0.352188]
[1725629628803,0.176105,56784.0,56783.0,0.1704]
[1725629629029,0.176116,56781.0,56777.0,0.1838]
[1725629629290,0.3214,56792.0,56777.0,0.1838]
[1725629629291,0.35219,56788.0,56777.0,0.1838]
[1725629629532,0.35221,56785.0,56777.0,0.1838]
[1725629629779,0.1393,56792.0,56777.0,0.1838]
[1725629630032,0.176115,56781.0,56777.0,0.359926]
[1725629630282,0.1393,56792.0,56777.0,0.359926]
[1725629630283,0.176097,56787.0,56781.0,0.352227]
[1725629630534,0.176109,56783.0,56779.0,0.176119]
[1725629630746,0.176109,56783.0,56777.0,0.1838]
[1725629630747,0.1393,56792.0,56777.0,0.1838]
[1725629630971,0.176124,56778.0,56777.0,0.1838]
[1725629631175,0.44451526,56787.0,56777.0,0.1838]
[1725629631176,0.44451526,56787.0,56778.0,0.352248]
[1725629631424,0.44451526,56787.0,56777.0,0.1838]
[1725629631641,0.352242,56780.0,56777.0,0.1838]
[1725629631868,0.176113,56782.0,56777.0,0.1838]
[1725629632105,0.176124,56778.0,56777.0,0.1838]
[1725629632325,0.528373,56778.0,56777.0,0.1838]
[1725629632563,0.176134,56775.0,56771.0,0.176145]
[1725629632777,0.176146,56771.0,56770.0,0.1685]
[1725629632992,0.176133,56776.0,56770.0,0.1685]
[1725629633218,0.176135,56775.0,56771.0,0.176144]
[1725629633665,0.176137,56774.0,56771.0,0.176145]
[1725629633879,0.44451526,56779.0,56770.0,0.1685]
[1725629634113,0.176115,56781.0,56774.0,0.352273]
[1725629634337,0.44451526,56786.0,56771.0,0.52779896]
[1725629634559,0.176127,56777.0,56776.0,0.00021202]
[1725629634795,0.880637,56777.0,56776.0,0.00021202]
[1725629635029,1.232892,56777.0,56776.0,0.00021202]
[1725629635248,1.369292,56777.0,56776.0,0.00021202]
[1725629635481,0.44451526,56774.0,56764.0,0.17104402]
[1725629635711,0.1364,56777.0,56757.0,0.313588]
[1725629635712,0.352342,56763.0,56757.0,0.313588]
[1725629635955,0.79682526,56769.0,56757.0,0.313588]
[1725629635956,0.352339,56764.0,56757.0,0.1374]
[1725629636229,0.352281,56773.0,56759.0,0.352364]
[1725629636439,0.44451526,56775.0,56759.0,0.352364]
[1725629636440,0.44451526,56775.0,56762.0,0.352344]
[1725629636676,0.44451526,56775.0,56759.0,0.17551096]
[1725629636677,0.176171,56763.0,56759.0,0.17551096]
[1725629636904,0.176163,56766.0,56762.0,0.176173]
[1725629637134,0.176169,56764.0,56761.0,0.176177]
[1725629637362,0.44451526,56775.0,56761.0,0.176177]
[1725629637363,0.176159,56767.0,56761.0,0.352352]
[1725629637601,0.176155,56768.0,56761.0,0.352352]
[1725629637838,0.176154,56769.0,56765.0,0.176164]
[1725629638054,0.4863,56787.0,56765.0,0.17551096]
[1725629638055,0.1441,56784.0,56765.0,0.17551096]
[1725629638272,0.352286,56772.0,56765.0,0.17551096]
[1725629638484,0.352286,56772.0,56766.0,0.1696]
[1725629638723,0.352274,56774.0,56767.0,0.352313]
[1725629638976,0.352287,56772.0,56767.0,0.176158]
[1725629639211,0.176146,56771.0,56767.0,0.176157]
[1725629639453,0.352255,56777.0,56768.0,0.17551096]
[1725629639683,0.352265,56776.0,56769.0,0.352302]
[1725629639921,0.352271,56775.0,56768.0,0.17551096]
[1725629640140,0.176129,56777.0,56773.0,0.176139]
[1725629640365,0.44451526,56780.0,56768.0,0.17551096]
[1725629640604,0.2814,56786.0,56771.0,0.176145]
[1725629640605,0.176135,56775.0,56771.0,0.176145]
[1725629640840,0.352265,56776.0,56766.0,0.1696]
[1725629641063,0.352302,56770.0,56766.0,0.1696]
[1725629641277,0.44451526,56778.0,56766.0,0.1696]
[1725629641278,0.35229,56772.0,56766.0,0.1696]
[1725629641490,0.176152,56769.0,56766.0,0.1696]
[1725629641706,0.352296,56771.0,56766.0,0.1696]
[1725629642182,0.44451526,56778.0,56766.0,0.1696]
[1725629642183,0.176158,56767.0,56766.0,0.1696]
[1725629642411,0.176156,56768.0,56766.0,0.1696]
[1725629642707,0.44451526,56778.0,56766.0,0.1696]
[1725629642928,0.52650515,56776.0,56766.0,0.1696]
[1725629643188,0.52650515,56776.0,56751.0,0.01]
[1725629643189,0.143,56766.0,56739.0,0.1343]
[1725629643418,0.352408,56753.0,56746.0,0.52650515]
[1725629643645,0.44451526,56765.0,56747.0,0.35873469]
[1725629643888,0.176189,56757.0,56750.0,0.352419]
[1725629644131,0.176189,56757.0,56747.0,0.1797]
[1725629644132,0.30117066,56757.0,56747.0,0.1797]
[1725629644353,0.176217,56748.0,56747.0,0.1797]
[1725629644585,0.528652,56748.0,56747.0,0.1797]
[1725629644808,0.528652,56748.0,56724.0,0.012]
[1725629644809,0.176243,56740.0,56736.0,0.176253]
[1725629645026,0.176243,56740.0,56724.0,0.01]
[1725629645027,0.176245,56739.0,56726.0,0.1408]
[1725629645243,1.233718,56739.0,56726.0,0.3143]
[1725629645702,1.233718,56739.0,56726.0,0.1735]
[1725629645703,1.722009,56739.0,56726.0,0.1735]
[1725629645929,1.822009,56739.0,56721.0,0.176299]
[1725629646160,1.822009,56739.0,56723.0,0.176294]
[1725629646161,1.91809781,56739.0,56723.0,0.176294]
[1725629646473,1.91809781,56739.0,56722.0,0.00352547]
[1725629646474,0.86062481,56739.0,56722.0,0.00352547]
[1725629646630,0.86062481,56739.0,56729.0,0.1735]
[1725629646631,0.72482481,56739.0,56729.0,0.1735]
[1725629646868,1.42980681,56739.0,56729.0,0.1735]
[1725629647344,0.628736,56739.0,56729.0,0.1735]
[1725629647552,0.18827307,56748.0,56733.0,0.352525]
[1725629647813,0.176245,56739.0,56729.0,0.1735]
[1725629648037,0.704982,56739.0,56729.0,0.1735]
[1725629648259,1.233718,56739.0,56729.0,0.1735]
[1725629648756,0.176245,56739.0,56729.0,0.1735]
[1725629649010,0.528736,56739.0,56729.0,0.1735]
[1725629649245,0.05247307,56748.0,56747.0,0.528661]
[1725629649467,0.05247307,56748.0,56747.0,0.712661]
[1725629649904,0.05247307,56748.0,56747.0,1.59305396]
[1725629650125,0.05247307,56748.0,56747.0,1.77215396]
[1725629650622,0.05247307,56748.0,56747.0,2.12459496]
[1725629650864,0.05247307,56748.0,56747.0,1.77215396]
[1725629651094,0.05247307,56748.0,56747.0,2.12459496]
[1725629651305,0.05247307,56748.0,56747.0,1.77215396]
[1725629651526,0.07862659,56757.0,56747.0,1.77215396]
[1725629651751,0.07862659,56757.0,56755.0,1.74972828]
[1725629651968,0.07862659,56757.0,56755.0,1.87272828]
[1725629652183,0.07862659,56757.0,56755.0,0.839486]
[1725629652394,0.07862659,56757.0,56755.0,0.510095]
[1725629652604,0.07862659,56757.0,56755.0,1.214877]
[1725629652815,0.07862659,56757.0,56755.0,1.39038796]
[1725629653033,0.352311,56768.0,56755.0,0.3109]
[1725629653263,0.17616,56767.0,56759.0,0.352363]
[1725629653500,0.176166,56765.0,56756.0,0.352383]
[1725629653764,0.35232,56767.0,56755.0,0.3109]
[1725629653996,0.35232,56767.0,56758.0,0.352371]
[1725629654316,0.35232,56767.0,56747.0,0.00352319]
[1725629654317,0.1333,56758.0,56741.0,0.1354]
[1725629654525,0.44857981,56745.0,56734.0,0.17814]
[1725629654741,0.176245,56739.0,56734.0,0.17814]
[1725629655000,0.44857981,56745.0,56734.0,0.17814]
[1725629655228,0.176245,56739.0,56734.0,0.00164]
[1725629655470,0.528736,56739.0,56734.0,0.00164]
[1725629655697,0.881227,56739.0,56734.0,0.00164]
[1725629656148,1.68229781,56739.0,56734.0,0.00164]
[1725629656641,0.97731581,56739.0,56734.0,0.00164]
[1725629656879,0.176245,56739.0,56734.0,0.00164]
[1725629657348,0.44857981,56745.0,56734.0,0.354157]
[1725629657581,0.176245,56739.0,56734.0,0.00164]
[1725629657801,0.97731581,56739.0,56734.0,0.00164]
[1725629658273,1.32980681,56739.0,56734.0,0.00164]
[1725629658505,0.62482481,56739.0,56734.0,0.00164]
[1725629658738,0.1,56744.0,56735.0,0.1832]
[1725629658951,0.176245,56739.0,56735.0,0.1832]
[1725629659206,0.528736,56739.0,56735.0,0.1832]
[1725629659435,0.528736,56739.0,56734.0,0.00164]
[1725629659921,0.1,56744.0,56734.0,0.14474]
[1725629660143,0.1,56749.0,56734.0,0.00164]
[1725629660376,0.528736,56739.0,56734.0,0.00164]
[1725629660608,0.176245,56739.0,56734.0,0.00164]
[1725629660823,0.528736,56739.0,56734.0,0.00164]
[1725629661038,0.176245,56739.0,56734.0,0.00164]
[1725629661284,0.528736,56739.0,56734.0,0.00164]
[1725629661495,0.881227,56739.0,56734.0,0.00164]
[1725629661784,0.352467,56743.0,56734.0,0.00164]
[1725629662002,0.352469,56743.0,56737.0,0.17625]
[1725629662218,0.44857981,56745.0,56734.0,0.00164]
[1725629662219,0.528736,56739.0,56734.0,0.00164]
[1725629662436,0.881227,56739.0,56734.0,0.00164]
[1725629662673,0.528736,56739.0,56734.0,0.00164]
[1725629663323,0.881227,56739.0,56734.0,0.00164]
[1725629663823,0.528736,56739.0,56734.0,0.00164]
[1725629664033,0.352441,56748.0,56734.0,0.00164]
[1725629664276,0.1,56749.0,56734.0,0.00164]
[1725629664277,0.176245,56739.0,56734.0,0.00164]
[1725629664509,0.528736,56739.0,56734.0,0.00164]
[1725629664743,0.881227,56739.0,56734.0,0.00164]
[1725629665477,0.352472,56742.0,56736.0,0.176254]
[1725629665701,0.352472,56742.0,56734.0,0.00164]
[1725629665702,0.176245,56739.0,56735.0,0.176256]
[1725629665914,0.176242,56741.0,56734.0,0.00164]
[1725629666153,0.528736,56739.0,56734.0,0.00164]
[1725629666393,0.44857981,56744.0,56734.0,0.354158]
[1725629666394,0.17624,56741.0,56734.0,0.354158]
[1725629666616,0.452441,56747.0,56739.0,0.1789]
[1725629666617,0.352452,56746.0,56739.0,0.1789]
[1725629666848,0.1,56747.0,56739.0,0.1789]
[1725629667061,0.352428,56750.0,56739.0,0.355144]
[1725629667062,0.352451,56746.0,56739.0,0.355144]
[1725629667298,0.1,56749.0,56738.0,0.001632]
[1725629667299,0.528736,56739.0,56738.0,0.001632]
[1725629667549,0.35247,56743.0,56738.0,0.001632]
[1725629667981,0.352455,56745.0,56739.0,0.176244]
[1725629668206,0.176235,56743.0,56739.0,0.176244]
[1725629668423,0.176232,56744.0,56740.0,0.176241]
[1725629668647,0.30127282,56748.0,56743.0,0.176232]
[1725629668873,0.176238,56742.0,56738.0,0.001632]
[1725629669078,0.176238,56742.0,56738.0,0.17788]
[1725629669559,0.176225,56746.0,56742.0,0.176236]
[1725629669767,0.176221,56747.0,56743.0,0.176232]
[1725629670001,0.176227,56745.0,56739.0,0.352485]
[1725629670215,0.176227,56745.0,56740.0,0.352481]
[1725629670432,0.352444,56747.0,56739.0,0.352485]
[1725629670433,0.35245,56746.0,56739.0,0.352485]
[1725629670661,0.30208882,56748.0,56738.0,0.001632]
[1725629670887,0.452442,56747.0,56740.0,0.176241]
[1725629671134,0.452442,56747.0,56739.0,0.35249]
[1725629671135,0.176231,56744.0,56741.0,0.176239]
[1725629671438,0.352453,56746.0,56738.0,0.001632]
[1725629671659,0.30208882,56748.0,56738.0,0.001632]
[1725629671660,0.000816,56748.0,56747.0,0.17622]
[1725629671892,0.000816,56748.0,56747.0,1.40391296]
[1725629672116,0.000816,56748.0,56747.0,1.75435396]
[1725629672777,0.000816,56748.0,56747.0,2.10879496]
[1725629673242,0.000816,56748.0,56747.0,2.11879496]
[1725629673473,0.52650515,56777.0,56773.0,0.17614]
[1725629673736,0.52650515,56777.0,56773.0,0.8807]
[1725629673958,0.1374,56790.0,56779.0,0.176121]
[1725629673959,0.352181,56789.0,56779.0,0.176121]
[1725629674179,0.352181,56789.0,56779.0,0.528363]
[1725629674410,0.3522,56786.0,56779.0,0.176121]
[1725629674632,0.30127282,56786.0,56779.0,0.176121]
[1725629674880,0.176075,56794.0,56779.0,0.70387396]
[1725629675110,0.352144,56795.0,56779.0,1.40835796]
[1725629675111,0.352164,56792.0,56779.0,1.40835796]
[1725629675575,0.352164,56792.0,56779.0,1.05611596]
[1725629676053,0.00056133,56796.0,56779.0,1.75605796]
[1725629676272,0.176081,56792.0,56779.0,1.75605796]
[1725629676512,0.176084,56791.0,56779.0,1.75605796]
[1725629677229,0.176096,56787.0,56779.0,1.205305]
[1725629677459,0.352183,56789.0,56779.0,0.1865]
[1725629677688,0.59291101,56782.0,56769.0,0.176152]
[1725629677939,0.352245,56779.0,56771.0,0.176145]
[1725629678164,0.352245,56779.0,56769.0,0.352301]
[1725629678165,0.352246,56779.0,56769.0,0.352301]
[1725629678391,0.1454,56782.0,56773.0,0.352278]
[1725629678620,0.176128,56777.0,56772.0,0.176141]
[1725629678847,0.000816,56780.0,56773.0,0.17551096]
[1725629679121,0.000816,56780.0,56779.0,1.063905]
[1725629679343,0.000816,56780.0,56779.0,1.59165796]
[1725629679552,0.000816,56780.0,56779.0,1.23941596]
[1725629680244,0.000816,56780.0,56779.0,1.26241596]
[1725629681223,0.000816,56780.0,56779.0,1.61465796]
[1725629681448,0.000816,56780.0,56779.0,1.23941596]
[1725629681882,0.000816,56780.0,56779.0,1.59165796]
[1725629682064,0.000816,56780.0,56779.0,1.23941596]
[1725629682557,0.000816,56780.0,56779.0,0.1833]
[1725629682773,0.000816,56780.0,56764.0,0.176165]
[1725629682774,0.176134,56775.0,56764.0,0.176165]
[1725629682982,0.141516,56780.0,56764.0,0.176165]
[1725629682983,0.176147,56771.0,56764.0,0.352334]
[1725629683225,0.176147,56771.0,56763.0,0.1718]
[1725629683226,0.352261,56776.0,56769.0,0.17615]
[1725629683476,0.141516,56780.0,56770.0,0.352294]
[1725629683477,0.352247,56779.0,56770.0,0.352294]
[1725629683686,0.141516,56780.0,56765.0,0.17551096]
[1725629683923,0.176124,56778.0,56774.0,0.176136]
[1725629684166,0.141516,56780.0,56765.0,0.17551096]
[1725629684167,0.000816,56780.0,56773.0,0.00352249]
[1725629684405,0.000816,56780.0,56765.0,0.17551096]
[1725629684406,0.000816,56780.0,56779.0,0.880605]
[1725629684618,0.000816,56780.0,56779.0,1.40835796]
[1725629685142,0.000816,56780.0,56779.0,1.59025796]
[1725629685355,0.000816,56780.0,56779.0,1.96549996]
[1725629686926,0.000816,56780.0,56779.0,2.42301097]
[1725629687151,0.000816,56780.0,56779.0,2.55911097]
[1725629687388,0.000816,56780.0,56779.0,2.11159996]
[1725629687823,0.000816,56780.0,56779.0,2.55911097]
[1725629688508,0.000816,56780.0,56779.0,3.03130229]
[1725629688968,1e-06,56780.0,56779.0,3.38354429]
[1725629689842,1e-06,56780.0,56779.0,2.23154928]
[1725629690516,1e-06,56780.0,56779.0,2.20159996]
[1725629690734,1e-06,56780.0,56779.0,1.84935796]
[1725629690944,1e-06,56780.0,56779.0,1.59025796]
[1725629691186,1e-06,56780.0,56779.0,0.710263]
[1725629691415,1e-06,56780.0,56779.0,0.88577396]
[1725629691652,1e-06,56780.0,56779.0,1.59025796]
[1725629692576,1e-06,56780.0,56779.0,1.61325796]
[1725629694000,1e-06,56780.0,56779.0,0.710263]
[1725629694212,1e-06,56780.0,56779.0,1.062505]
[1725629694395,1e-06,56780.0,56779.0,1.59025796]
[1725629694874,1e-06,56780.0,56779.0,1.61488996]
[1725629695363,1e-06,56780.0,56779.0,1.26264796]
[1725629695835,1e-06,56780.0,56779.0,1.61488996]
[1725629696054,1e-06,56780.0,56779.0,1.23964796]
[1725629696296,1e-06,56780.0,56779.0,1.61488996]
[1725629696515,1e-06,56780.0,56779.0,1.26264796]
[1725629697162,1e-06,56780.0,56779.0,1.61488996]
[1725629697814,1e-06,56780.0,56779.0,1.23964796]
[1725629698031,1e-06,56780.0,56779.0,1.59188996]
[1725629698280,1e-06,56780.0,56779.0,1.61488996]
[1725629698980,1e-06,56780.0,56779.0,1.59188996]
[1725629699200,1e-06,56780.0,56779.0,1.61488996]
[1725629699433,0.30074798,56789.0,56779.0,0.001632]
[1725629699655,0.352189,56788.0,56781.0,0.176114]
[1725629699878,0.176104,56785.0,56781.0,0.176114]
[1725629700449,0.1775,56793.0,56781.0,0.00352205]
[1725629700458,0.47712,56808.0,56779.0,0.001632]
[1725629700459,0.47712,56808.0,56795.0,0.176071]
[1725629700692,0.00082,56808.0,56795.0,1.05586796]
[1725629700925,0.00082,56808.0,56795.0,1.93225396]
[1725629701148,0.00082,56808.0,56795.0,1.60311096]
[1725629701371,0.176093,56788.0,56784.0,0.176105]
[1725629701601,0.176093,56788.0,56776.0,0.1812]
[1725629701602,0.30074798,56788.0,56776.0,0.1812]
[1725629701807,0.30074798,56788.0,56771.0,0.352292]
[1725629702113,0.30074798,56788.0,56754.0,0.1]
[1725629702114,0.52650515,56785.0,56764.0,0.1]
[1725629702329,0.000819,56805.0,56766.0,0.352318]
[1725629702330,0.88059,56780.0,56766.0,0.352318]
[1725629702558,0.88059,56780.0,56752.0,0.01]
[1725629702559,0.176118,56780.0,56763.0,0.1819]
[1725629702771,1.15689,56780.0,56759.0,0.352362]
[1725629702987,1.15689,56780.0,56759.0,0.704725]
[1725629703233,1.15689,56780.0,56766.0,0.17616]
[1725629703489,0.1783,56787.0,56781.0,0.176115]
[1725629703754,0.00056133,56796.0,56783.0,0.1738]
[1725629703996,0.00056133,56796.0,56795.0,0.880357]
[1725629704240,0.00056133,56796.0,56795.0,0.528214]
[1725629704654,0.00056133,56796.0,56795.0,1.05586796]
[1725629704902,0.00056133,56796.0,56795.0,1.56941096]
[1725629705576,0.00056133,56796.0,56795.0,0.528214]
[1725629706067,0.00056133,56796.0,56795.0,0.70372496]
[1725629706292,0.00056133,56796.0,56791.0,0.1691]
[1725629706558,0.00056133,56796.0,56790.0,0.176085]
[1725629706788,0.00056133,56796.0,56785.0,0.1784]
[1725629707028,0.18496133,56796.0,56787.0,0.00163]
[1725629707271,0.00056133,56796.0,56790.0,0.352172]
[1725629707520,0.00056133,56796.0,56792.0,0.17608]
[1725629707734,0.00056133,56796.0,56795.0,0.528214]
[1725629707961,0.00056133,56796.0,56795.0,1.05586796]
[1725629708202,0.00056133,56796.0,56795.0,2.08225396]
[1725629708452,0.00056133,56796.0,56795.0,2.40600194]
[1725629708939,0.00056133,56796.0,56795.0,1.40096796]
[1725629709155,0.00056133,56796.0,56795.0,1.058857]